bitfinex/quotes_ETHUSD_20240719
["timestamp","ask_amount","ask_price","bid_price","bid_amount"]
[1721428947482,4.48375,3523.6,3523.0,2.55459]
[1721428947671,1.047,3523.3,3523.0,2.55459]
[1721428947848,1.047,3523.3,3523.1,2.55454]
[1721428948048,1.047,3523.3,3523.2,2.55449]
[1721428950001,1.047,3523.3,3523.0,5.10917]
[1721428950201,0.55,3523.2,3522.5,7.39]
[1721428950403,0.55,3523.2,3522.3,2.3083]
[1721428950404,0.55,3523.2,3522.6,1.97871829]
[1721428950599,0.55,3523.2,3522.7,2.5548]
[1721428951799,0.55,3523.2,3522.8,2.55472]
[1721428952675,0.55,3523.2,3522.9,2.55469]
[1721428952912,0.55,3523.2,3522.8,2.3083]
[1721428953089,0.55,3523.4,3522.9,2.55465]
[1721428953280,0.55,3523.4,3522.9,3.296428]
[1721428954094,0.55,3523.4,3523.0,0.07178333]
[1721428955301,0.55,3523.4,3523.0,2.62637333]
[1721428955965,1.047,3523.4,3523.0,2.62637333]
[1721428956291,0.55,3523.3,3523.0,2.62637333]
[1721428958267,1.047,3523.4,3523.1,2.55452]
[1721428958472,1.047,3523.4,3523.1,2.62625167]
[1721428959170,1.047,3523.4,3523.1,0.07173167]
[1721428959372,2.4895,3523.3,3523.1,0.07173167]
[1721428959670,2.4895,3523.3,3523.2,0.07168002]
[1721428959903,3.5365,3523.3,3523.2,0.07168002]
[1721428960108,3.5365,3523.3,3522.9,2.55466]
[1721428960331,3.0,3524.1,3522.3,7.98288968]
[1721428960332,1.047,3523.0,3522.3,7.98288968]
[1721428960484,1.047,3522.8,3522.4,2.55503]
[1721428961392,1.047,3523.0,3522.5,2.55499]
[1721428961588,1.047,3523.0,3522.5,2.62503729]
[1721428961806,1.047,3523.0,3522.6,2.55492]
[1721428962191,0.55,3523.1,3522.7,2.62478395]
[1721428962927,1.597,3523.1,3522.7,2.62478395]
[1721428963720,1.597,3523.1,3522.7,0.06994395]
[1721428968834,0.55,3523.1,3522.7,2.62479395]
[1721428969040,0.55,3523.2,3522.8,0.78177177]
[1721428969199,0.55,3523.2,3522.7,2.62479395]
[1721428969550,0.55,3523.2,3522.8,0.06991206]
[1721428969751,0.55,3523.2,3522.7,2.55485]
[1721428969895,0.55,3523.2,3522.9,0.0698604]
[1721428970094,0.55,3523.2,3522.7,2.55485]
[1721428970294,0.55,3523.2,3523.0,0.06980874]
[1721428970546,0.55,3523.2,3522.7,2.55485]
[1721428970701,0.55,3523.2,3523.1,0.06975708]
[1721428970904,0.55,3523.2,3522.7,2.55485]
[1721428971253,0.55,3523.2,3523.1,0.06975708]
[1721428971437,0.55,3523.2,3522.7,2.55485]
[1721428971599,0.55,3523.2,3523.1,0.06975708]
[1721428971800,0.55,3523.2,3522.7,2.55485]
[1721428971996,0.55,3523.2,3523.1,0.06975708]
[1721428972238,0.55,3523.2,3522.7,2.55485]
[1721428972396,0.55,3523.2,3523.1,0.06975708]
[1721428972608,0.55,3523.2,3522.7,2.55485]
[1721428972806,0.55,3523.2,3523.1,0.06975708]
[1721428973048,0.55,3523.2,3522.7,2.55485]
[1721428973446,0.55,3523.2,3522.8,0.06991206]
[1721428973929,0.55,3523.2,3522.9,0.0698604]
[1721428974139,0.55,3523.2,3522.7,2.55485]
[1721428974451,0.55,3523.2,3523.0,0.06980874]
[1721428974751,0.55,3523.2,3522.7,2.55485]
[1721428974907,0.55,3523.2,3523.1,0.06977195]
[1721428975120,0.55,3523.2,3522.7,2.55485]
[1721428975321,0.55,3523.2,3523.1,0.06977195]
[1721428975547,0.55,3523.2,3522.7,2.55485]
[1721428975745,0.55,3523.2,3523.1,0.06977195]
[1721428976181,0.55,3523.2,3522.7,2.55485]
[1721428976338,0.55,3523.2,3523.1,0.06977195]
[1721428976528,0.55,3523.2,3522.7,2.55485]
[1721428976723,0.55,3523.2,3523.1,0.06977195]
[1721428977054,0.55,3523.2,3522.7,2.55485]
[1721428977258,0.55,3523.2,3523.1,0.06977195]
[1721428977558,0.55,3523.2,3522.7,2.55485]
[1721428977763,0.55,3523.2,3523.1,0.06977195]
[1721428977924,0.55,3523.2,3522.7,2.55485]
[1721428978262,0.55,3523.2,3523.1,0.06977195]
[1721428979466,3.55,3523.2,3522.8,2.55478]
[1721428979770,0.55,3523.2,3522.8,2.55478]
[1721428979970,0.55,3523.2,3522.9,0.06987526]
[1721428980170,0.55,3523.2,3522.8,2.55478]
[1721428980387,0.55,3523.2,3523.0,0.0698236]
[1721428980531,5.55436,3523.4,3522.9,0.06987526]
[1721428980532,4.047,3523.4,3522.9,0.06987526]
[1721428980734,4.047,3523.4,3522.8,0.51097]
[1721428980931,4.047,3523.4,3523.0,2.6243836]
[1721428981171,4.047,3523.4,3523.0,2.86809536]
[1721428981389,4.047,3523.4,3523.1,2.62431195]
[1721428982261,4.047,3523.4,3523.1,0.06977195]
[1721428982640,4.047,3523.4,3523.0,2.55463]
[1721428982838,4.047,3523.4,3523.1,0.06977195]
[1721428983244,4.047,3523.4,3523.2,0.06972029]
[1721428983751,4.047,3523.4,3523.3,0.06966864]
[1721428984076,4.597,3523.4,3523.0,2.55463]
[1721428984800,4.597,3523.4,3523.1,0.06976135]
[1721428985294,4.597,3523.4,3523.2,0.06970969]
[1721428985598,4.597,3523.4,3523.0,2.55463]
[1721428985750,1.047,3523.2,3522.8,2.55475]
[1721428985945,1.047,3523.2,3523.1,0.06976135]
[1721428986297,1.047,3523.2,3522.9,2.5547]
[1721428986440,1.047,3523.2,3523.1,0.06976135]
[1721428986772,1.047,3523.2,3522.9,2.5547]
[1721428986969,1.047,3523.0,3522.9,2.5547]
[1721428987171,1.047,3523.0,3522.6,2.5549]
[1721428987351,1.047,3523.0,3522.7,2.55485]
[1721428987352,2.3016,3522.9,3522.7,2.55485]
[1721428989883,2.3016,3522.9,3522.8,0.06991633]
[1721428990614,2.3016,3522.9,3522.7,2.55485]
[1721428990782,2.3016,3522.9,3522.8,0.06991633]
[1721428992019,2.3016,3522.9,3522.7,2.55485]
[1721428992170,2.3016,3522.9,3522.8,0.06991633]
[1721428992371,2.3016,3522.9,3522.7,2.55485]
[1721428992692,1.047,3523.0,3522.8,0.06991633]
[1721428992876,1.047,3523.2,3522.8,2.55478]
[1721428993077,0.55,3523.1,3522.9,0.06986466]
[1721428993432,0.55,3523.1,3522.8,2.55478]
[1721428993808,0.55,3523.1,3522.9,0.06986466]
[1721428994304,0.55,3523.1,3522.8,2.55478]
[1721428994503,0.55,3523.1,3523.0,0.069813]
[1721428994670,0.55,3523.1,3522.8,2.55478]
[1721428994873,0.55,3523.1,3522.9,0.06986466]
[1721428995274,0.55,3523.1,3522.8,2.55478]
[1721428995501,0.55,3523.1,3522.9,0.06986466]
[1721428995889,0.55,3523.1,3522.8,2.55478]
[1721428996284,0.55,3523.1,3522.9,0.06986466]
[1721428996490,0.55,3523.1,3522.8,2.55478]
[1721428996690,0.55,3523.1,3522.9,0.06986466]
[1721428996911,0.55,3523.1,3522.8,2.55478]
[1721428997107,0.55,3523.1,3523.0,0.069813]
[1721428997294,0.55,3523.1,3522.8,2.55478]
[1721428997821,0.55,3523.1,3522.9,0.06986466]
[1721428998114,0.55,3523.1,3522.8,2.55478]
[1721428998411,0.55,3523.1,3523.0,0.069813]
[1721428998605,0.55,3523.1,3522.9,0.06986466]
[1721428998910,0.55,3523.1,3523.0,0.069813]
[1721428999110,0.55,3523.1,3522.8,2.55478]
[1721428999630,3.3486,3523.0,3522.9,0.0698788]
[1721428999830,2.3016,3523.0,3522.9,0.0698788]
[1721429000131,2.3016,3523.0,3522.6,2.55493]
[1721429000617,4.8566,3522.5,3521.9,2.55541]
[1721429001028,0.55,3522.4,3521.9,2.55541]
[1721429001367,0.55,3522.4,3521.3,3.14871968]
[1721429001368,4.85704,3521.9,3521.3,3.14871968]
[1721429001482,1.047,3521.7,3521.3,2.55583]
[1721429003022,1.047,3521.7,3521.4,2.5558]
[1721429004885,1.047,3521.7,3521.5,0.06634726]
[1721429005080,3.3486,3521.9,3521.5,0.06634726]
[1721429005323,3.3486,3521.9,3521.6,0.06629556]
[1721429005618,3.3486,3521.9,3521.4,2.5558]
[1721429005824,3.3486,3521.9,3521.7,0.06624386]
[1721429006023,3.3486,3521.9,3521.4,2.5558]
[1721429006182,2.55515,3522.3,3521.8,0.06619216]
[1721429006385,3.55,3522.2,3521.9,2.55537]
[1721429006621,3.0,3522.4,3521.9,2.62151047]
[1721429007143,2.2986,3522.5,3521.9,2.62151047]
[1721429007293,3.3456,3522.5,3521.9,2.62151047]
[1721429007484,3.0,3522.4,3522.0,2.55536]
[1721429007903,0.55,3522.3,3522.1,0.0660371]
[1721429009596,1.597,3522.3,3522.1,0.0660371]
[1721429009800,1.047,3522.3,3522.1,0.0660371]
[1721429014651,1.047,3522.3,3521.9,2.55543]
[1721429014819,1.047,3522.3,3522.2,0.06598541]
[1721429015021,1.047,3522.3,3521.9,2.55543]
[1721429015202,1.047,3522.3,3522.2,0.06598541]
[1721429015407,1.047,3522.3,3522.0,2.55536]
[1721429015609,1.047,3522.3,3522.2,0.06598541]
[1721429015906,1.047,3522.3,3522.2,0.06603444]
[1721429016706,1.047,3522.3,3522.0,2.55536]
[1721429018345,3.0,3522.4,3522.0,2.55536]
[1721429018539,1.047,3522.4,3522.0,2.55536]
[1721429018724,4.047,3522.4,3522.0,2.55536]
[1721429019825,4.047,3522.4,3522.1,0.06613303]
[1721429021124,1.047,3522.2,3522.1,0.06613303]
[1721429021324,1.047,3522.2,3521.8,2.55551]
[1721429021527,1.047,3522.2,3521.9,0.06623641]
[1721429022126,1.047,3522.2,3521.9,2.62165641]
[1721429027167,1.047,3522.2,3521.9,0.06623641]
[1721429027369,1.047,3522.2,3521.7,2.55552]
[1721429027571,1.047,3522.2,3522.0,0.06618892]
[1721429027796,1.047,3522.2,3521.7,2.55552]
[1721429027994,1.047,3522.2,3522.1,0.06613723]
[1721429028195,1.047,3522.2,3521.7,2.55552]
[1721429028408,1.047,3522.2,3522.1,0.06613723]
[1721429028568,1.047,3522.2,3521.7,2.55552]
[1721429028899,1.047,3522.2,3522.1,0.06613723]
[1721429029105,1.047,3522.2,3521.7,2.55552]
[1721429029254,1.047,3522.2,3522.1,0.06613723]
[1721429029459,1.047,3522.2,3521.7,2.55552]
[1721429029958,1.047,3522.2,3521.8,2.6217923]
[1721429030227,1.047,3522.2,3521.8,0.0662923]
[1721429030406,1.047,3522.2,3521.5,2.5557]
[1721429030553,1.047,3522.2,3521.9,0.06624061]
[1721429030754,1.047,3522.2,3521.5,2.5557]
[1721429030993,1.047,3522.2,3522.0,0.06618892]
[1721429031158,1.047,3522.2,3521.5,2.5557]
[1721429031359,1.047,3522.2,3522.1,0.06613723]
[1721429031575,1.047,3522.2,3521.5,2.5557]
[1721429031775,1.047,3522.2,3522.1,0.06613723]
[1721429031976,1.047,3522.2,3521.7,2.55557]
[1721429032191,1.047,3522.2,3522.1,0.06613723]
[1721429032416,1.047,3522.2,3521.7,2.55557]
[1721429032742,1.047,3522.2,3522.1,0.06613723]
[1721429032887,1.047,3522.2,3521.7,2.55557]
[1721429033091,1.047,3522.2,3521.8,0.0662923]
[1721429034880,3.4363,3521.9,3521.8,0.0662923]
[1721429035083,9.09716,3521.9,3521.8,0.0662923]
[1721429035419,2.55587,3521.3,3520.9,12.26]
[1721429035635,3.60287,3521.3,3520.7,2.55627]
[1721429037187,1.047,3520.9,3520.5,9.94645]
[1721429037403,1.047,3520.9,3520.6,3.54356095]
[1721429037730,2.55581,3521.4,3520.6,3.54356095]
[1721429037731,1.047,3521.1,3520.6,2.55637]
[1721429038305,1.047,3520.9,3520.4,2.55652]
[1721429038507,2.55609,3521.0,3520.5,2.46799123]
[1721429038695,3.60303,3521.1,3520.4,2.55652]
[1721429038895,2.55603,3521.1,3520.5,2.4679982]
[1721429039110,3.60303,3521.1,3520.4,3.54612042]
[1721429039354,3.60303,3521.1,3520.5,2.46799662]
[1721429039643,3.60303,3521.1,3520.4,3.54612042]
[1721429039850,3.60303,3521.1,3520.5,2.46799751]
[1721429039851,2.3893,3521.0,3520.5,2.46799751]
[1721429040061,1.047,3520.9,3520.4,2.55652]
[1721429040210,2.3893,3521.0,3520.5,0.98720319]
[1721429040411,2.3893,3521.0,3520.3,0.59288968]
[1721429040412,2.55629,3520.8,3520.3,0.59288968]
[1721429040723,2.55629,3520.8,3520.4,0.98720266]
[1721429040954,2.55629,3520.8,3520.2,0.59288968]
[1721429041161,2.55629,3520.8,3520.3,2.46805763]
[1721429041446,2.55629,3520.8,3520.4,0.98722305]
[1721429041653,2.55629,3520.8,3520.2,3.14954968]
[1721429041870,5.3893,3521.0,3520.3,2.46804845]
[1721429042048,3.0,3520.9,3520.6,2.55633]
[1721429042371,2.55631,3520.7,3520.2,0.59288968]
[1721429042511,5.55617,3520.9,3520.2,0.59288968]
[1721429042512,0.55,3520.8,3520.3,2.46803328]
[1721429042706,2.55617,3520.9,3520.4,0.98721331]
[1721429042949,1.047,3520.6,3520.2,0.59288968]
[1721429043149,1.047,3520.6,3520.3,2.46806488]
[1721429043364,1.047,3520.6,3520.4,0.98722595]
[1721429043654,1.047,3520.6,3520.2,0.59288968]
[1721429043838,1.047,3520.6,3520.3,2.46806455]
[1721429044054,1.047,3520.6,3520.4,0.98722582]
[1721429044255,1.047,3520.6,3520.2,0.59288968]
[1721429044558,2.55633,3520.7,3520.3,2.46806377]
[1721429044767,2.55633,3520.7,3520.4,2.46806377]
[1721429044970,1.047,3520.8,3520.4,2.46806377]
[1721429044971,2.3893,3521.0,3520.4,0.56176935]
[1721429045292,0.55,3520.9,3520.5,2.46800601]
[1721429045558,0.55,3520.9,3520.6,0.9872024]
[1721429045760,0.55,3520.9,3520.3,0.59288968]
[1721429045761,1.047,3520.8,3520.3,0.59288968]
[1721429045915,1.047,3520.8,3520.4,2.46805006]
[1721429046115,1.047,3520.8,3520.5,0.98722002]
[1721429046314,3.55,3520.9,3520.5,2.55645]
[1721429046912,1.047,3520.8,3520.5,2.55645]
[1721429047138,1.047,3520.8,3520.3,3.14942968]
[1721429047322,1.047,3520.8,3520.4,2.46804841]
[1721429047528,1.047,3520.8,3520.5,0.98721936]
[1721429047726,1.047,3520.8,3520.3,3.14942968]
[1721429047949,1.047,3520.8,3520.4,2.46805082]
[1721429048230,3.60325,3520.8,3520.5,0.98722033]
[1721429048435,0.55,3520.7,3520.3,0.59288968]
[1721429048629,0.55,3520.7,3520.4,2.46805397]
[1721429048831,0.55,3520.7,3520.5,0.98722159]
[1721429049040,0.55,3520.7,3520.2,3.14954968]
[1721429049279,0.55,3520.7,3520.3,2.4680565]
[1721429049475,0.55,3520.7,3520.4,2.4680565]
[1721429049665,0.55,3520.7,3520.5,0.9872226]
[1721429049861,0.55,3520.7,3520.4,0.05136045]
[1721429050173,0.55,3520.8,3520.5,1.03852746]
[1721429050409,0.55,3520.8,3520.5,0.05130871]
[1721429053548,0.692,3520.8,3520.5,0.05130871]
[1721429053981,0.692,3520.8,3520.3,1.48082629]
[1721429054151,0.692,3520.8,3520.6,0.05125212]
[1721429054352,0.692,3520.8,3520.3,2.55658]
[1721429054581,0.692,3520.8,3520.4,1.03857508]
[1721429054802,0.692,3520.8,3520.4,0.05135628]
[1721429056704,0.142,3520.8,3520.7,2.5563]
[1721429057058,0.142,3520.8,3520.7,5.16380595]
[1721429058206,0.142,3520.8,3520.7,11.20119149]
[1721429058401,0.142,3520.8,3520.7,12.6819555]
[1721429059809,0.142,3520.8,3520.7,10.1256555]
[1721429059959,0.142,3520.8,3520.7,11.70436353]
[1721429061369,0.142,3520.8,3520.7,9.21045181]
[1721429064674,0.142,3520.8,3520.7,9.21044553]
[1721429064875,0.142,3520.8,3520.7,6.74251398]
[1721429065059,0.142,3520.8,3520.7,9.21044418]
[1721429067059,0.142,3520.8,3520.7,12.35963386]
[1721429067677,0.142,3520.8,3520.7,11.37244291]
[1721429067879,0.142,3520.8,3520.7,12.35960241]
[1721429068603,0.142,3520.8,3520.7,9.80330241]
[1721429069708,0.142,3520.8,3520.7,12.35960241]
[1721429070212,0.142,3520.8,3520.7,9.80330241]
[1721429071012,0.142,3520.8,3520.7,7.33540366]
[1721429071213,0.142,3520.8,3520.7,9.80330473]
[1721429073087,0.142,3520.8,3520.7,7.24700473]
[1721429073291,0.142,3520.8,3520.7,5.07540702]
[1721429074220,0.142,3520.8,3520.7,2.60750595]
[1721429074403,0.142,3520.8,3520.7,5.07545581]
[1721429074602,0.142,3520.8,3520.7,8.22464549]
[1721429077391,0.142,3520.8,3520.7,6.74387557]
[1721429077591,0.142,3520.8,3520.7,9.41974329]
[1721429078733,0.142,3520.8,3520.7,5.66832728]
[1721429079596,0.142,3520.8,3520.7,7.6317376]
[1721429080744,0.142,3520.8,3520.7,5.16380595]
[1721429080899,0.142,3520.8,3520.7,7.63175202]
[1721429082398,0.142,3520.8,3520.7,10.49543556]
[1721429082602,0.142,3520.8,3520.7,11.82573211]
[1721429084039,0.142,3520.8,3520.7,9.35778604]
[1721429084253,0.142,3520.8,3520.7,11.82569726]
[1721429084402,0.142,3520.8,3520.7,10.49540071]
[1721429087049,0.142,3520.8,3520.7,7.63171717]
[1721429087217,0.142,3520.8,3520.7,10.49540304]
[1721429087421,0.142,3520.8,3520.7,7.63174527]
[1721429088511,0.142,3520.8,3520.7,7.63174793]
[1721429088729,0.142,3520.8,3520.7,9.02026017]
[1721429089241,0.142,3520.8,3520.7,11.88394653]
[1721429090547,0.142,3520.8,3520.7,9.41600455]
[1721429090751,0.142,3520.8,3520.7,11.88394435]
[1721429093765,0.142,3520.8,3520.7,7.53949411]
[1721429094072,0.142,3520.8,3520.7,6.15118454]
[1721429095230,0.142,3520.8,3520.7,5.16380595]
[1721429095451,0.142,3520.8,3520.7,6.1511545]
[1721429095961,0.142,3520.8,3520.7,7.63212798]
[1721429096263,0.142,3520.8,3520.7,6.1511545]
[1721429097369,0.142,3520.8,3520.7,6.1511414]
[1721429098331,2.5332,3520.8,3520.7,0.05120595]
[1721429098532,2.78652,3520.8,3520.7,0.05120595]
[1721429098950,2.78652,3520.8,3520.4,2.55648]
[1721429099676,2.78652,3520.8,3520.5,0.04957171]
[1721429100476,2.78652,3520.8,3520.5,2.60602171]
[1721429101676,2.78652,3520.8,3520.5,0.04957171]
[1721429101841,2.3912,3520.6,3520.5,0.04957171]
[1721429102164,2.9412,3520.6,3520.0,9.94679]
[1721429102368,3.9872,3520.6,3520.5,0.04960226]
[1721429102568,3.9872,3520.6,3520.3,2.55659]
[1721429102569,2.3912,3520.5,3520.3,2.55659]
[1721429102944,2.3912,3520.5,3520.4,0.049654]
[1721429103577,2.8933382,3520.5,3520.4,0.049654]
[1721429103751,2.3912,3520.5,3520.4,0.049654]
[1721429104475,2.3912,3520.5,3520.4,2.606174]
[1721429105043,2.3912,3520.5,3520.4,0.049654]
[1721429105276,2.3912,3520.5,3520.2,2.55662]
[1721429105678,2.3912,3520.5,3520.3,0.04970574]
[1721429105874,0.55,3520.6,3520.3,0.04970574]
[1721429105875,3.2206062,3520.4,3520.3,0.04970574]
[1721429106078,3.2206062,3520.4,3520.0,2.55677]
[1721429106267,3.2206062,3520.4,3520.3,0.04970574]
[1721429106467,3.2206062,3520.4,3520.0,2.55677]
[1721429106775,3.2206062,3520.4,3520.3,0.04970574]
[1721429106939,3.2206062,3520.4,3520.0,2.55677]
[1721429107145,3.2206062,3520.4,3520.3,0.04970574]
[1721429107347,2.3126,3520.3,3520.0,2.55677]
[1721429109655,2.3126,3520.3,3520.1,0.04980922]
[1721429110421,2.3126,3520.3,3520.1,2.60653922]
[1721429112682,1.046,3520.6,3520.1,0.56615114]
[1721429112683,2.3126,3520.6,3520.1,0.56615114]
[1721429112867,2.3126,3520.6,3520.5,2.55645]
[1721429113278,2.3126,3520.6,3520.5,2.60612103]
[1721429114699,2.3126,3520.6,3520.5,0.04967103]
[1721429114700,2.8626,3520.6,3520.5,0.04967103]
[1721429114858,3.823281,3520.6,3520.5,0.04967103]
[1721429115055,3.823281,3520.6,3520.4,2.55652]
[1721429115286,3.823281,3520.6,3520.5,0.04967103]
[1721429115659,2.3126,3520.6,3520.5,5.16257103]
[1721429115860,0.142,3520.8,3520.7,2.5563]
[1721429116294,0.142,3520.8,3520.7,2.60588424]
[1721429120967,0.142,3520.8,3520.7,0.04958424]
[1721429121369,0.142,3520.8,3520.5,2.55645]
[1721429121589,0.142,3520.8,3520.7,0.04957799]
[1721429121590,2.5814,3520.8,3520.7,0.04957799]
[1721429121799,2.5814,3520.8,3520.6,0.04960121]
[1721429121800,3.749749,3520.8,3520.6,0.04960121]
[1721429122029,3.749749,3520.8,3520.7,0.04954948]
[1721429122312,3.749749,3520.8,3520.5,2.55645]
[1721429122481,3.1314,3520.8,3520.7,0.04954948]
[1721429123381,2.5814,3520.8,3520.7,2.60584948]
[1721429123974,2.5814,3520.8,3520.7,5.16214948]
[1721429123975,0.142,3520.8,3520.7,5.16214948]
[1721429138834,0.142,3520.8,3520.7,15.78572746]
[1721429138988,1e-08,3520.8,3520.7,18.34948672]
[1721429139189,1e-08,3520.8,3520.7,20.85532918]
[1721429139388,1e-08,3520.8,3520.7,17.99104172]
[1721429139587,1e-08,3520.8,3520.7,18.88219988]
[1721429140507,1e-08,3520.8,3520.7,17.99104172]
[1721429141141,1e-08,3520.8,3520.7,11.02444793]
[1721429141431,1e-08,3520.8,3520.7,8.71399194]
[1721429141590,1e-08,3520.8,3520.7,6.20814948]
[1721429142807,2.4216,3521.2,3521.1,2.55601]
[1721429143194,2.4216,3521.2,3521.1,2.60527622]
[1721429153100,2.4216,3521.2,3521.1,0.04926622]
[1721429153303,2.4216,3521.2,3520.9,2.55616]
[1721429153498,2.4216,3521.2,3521.1,0.04771313]
[1721429153705,2.4216,3521.2,3520.9,2.55616]
[1721429153906,2.4216,3521.2,3521.1,0.04771105]
[1721429154100,2.401,3521.1,3520.5,7.39]
[1721429154301,2.401,3520.7,3520.5,7.39]
[1721429154740,2.401,3520.7,3520.6,0.0479773]
[1721429154948,2.951,3520.7,3520.6,0.0479773]
[1721429157938,2.951,3520.7,3520.1,2.55669]
[1721429158143,2.951,3520.7,3520.6,0.04477081]
[1721429158331,6.418239,3520.7,3520.6,0.04477081]
[1721429158534,6.418239,3520.7,3520.0,9.9468]
[1721429158735,3.10638,3520.6,3520.0,9.9468]
[1721429161049,0.55,3520.6,3520.1,2.55673]
[1721429161256,3.55,3520.6,3520.1,2.55673]
[1721429163764,3.0,3520.6,3520.4,2.55648]
[1721429166788,2.401,3520.7,3520.4,2.55652]
[1721429169034,5.401,3520.7,3520.4,2.55652]
[1721429169834,5.401,3520.7,3520.5,0.04347626]
[1721429171568,0.900322,3520.6,3520.2,2.55666]
[1721429171760,5.401,3520.7,3520.6,0.04342452]
[1721429171970,5.951,3520.7,3520.3,2.55659]
[1721429172267,5.951,3520.7,3520.6,0.04342452]
[1721429172467,5.951,3520.7,3520.2,2.55666]
[1721429172769,6.997,3520.7,3520.2,2.55666]
[1721429173062,6.997,3520.7,3520.3,0.04357973]
[1721429174028,6.997,3520.7,3520.3,2.60016973]
[1721429177592,1.046,3520.5,3520.3,2.60016973]
[1721429177808,1.046,3520.5,3520.3,0.04357973]
[1721429178116,2.3805,3520.6,3520.3,0.04357973]
[1721429178295,5.3805,3520.6,3520.3,0.04357973]
[1721429178480,5.3805,3520.6,3520.4,2.55652]
[1721429178681,5.3805,3520.6,3520.3,0.04357973]
[1721429178985,5.3805,3520.6,3520.5,0.04205002]
[1721429179194,5.3805,3520.6,3520.4,0.04210175]
[1721429179367,5.3805,3520.6,3520.5,0.04205002]
[1721429179579,5.3805,3520.6,3520.3,2.55659]
[1721429179765,5.3805,3520.6,3520.5,0.04205002]
[1721429179971,5.3805,3520.6,3520.3,2.55659]
[1721429180169,5.3805,3520.6,3520.5,0.04205002]
[1721429180369,5.3805,3520.6,3520.3,2.55659]
[1721429180579,5.3805,3520.6,3520.5,0.04205002]
[1721429180788,5.3805,3520.6,3520.3,2.55659]
[1721429181095,5.3805,3520.6,3520.5,0.04205002]
[1721429181298,5.3805,3520.6,3520.4,0.04210658]
[1721429181659,5.3805,3520.6,3520.3,2.55659]
[1721429181900,5.3805,3520.6,3520.5,0.04205485]
[1721429182109,5.3805,3520.6,3520.4,0.04210658]
[1721429182604,5.3805,3520.6,3520.5,0.04205485]
[1721429183012,5.3805,3520.6,3520.3,2.55659]
[1721429183509,5.3805,3520.6,3520.5,0.04168778]
[1721429183705,5.3805,3520.6,3520.3,2.55659]
[1721429183883,5.3805,3520.6,3520.5,0.04168778]
[1721429184081,5.3805,3520.6,3520.3,2.55659]
[1721429184474,5.3805,3520.6,3520.4,0.04173951]
[1721429185180,2.3805,3520.5,3520.4,0.04173951]
[1721429185419,2.9305,3520.5,3520.4,0.04173951]
[1721429185904,3.10645,3520.5,3519.9,2.55686]
[1721429186105,3.10645,3520.5,3520.4,0.0417478]
[1721429186310,4.763095,3520.5,3519.9,2.55686]
[1721429186608,2.4549,3520.2,3519.9,2.55686]
[1721429188701,2.4549,3520.2,3520.0,2.55681]
[1721429188902,3.0049,3520.4,3520.1,2.55673]
[1721429190130,3.0,3520.6,3520.3,2.5566]
[1721429190417,0.55,3520.5,3520.3,2.5566]
[1721429190822,3.55,3520.6,3520.3,2.5566]
[1721429191041,0.55,3520.6,3520.3,2.5566]
[1721429191237,3.55,3520.6,3520.3,2.5566]
[1721429194015,3.55,3520.6,3520.1,2.55668]
[1721429194645,1.046,3520.5,3520.0,2.55681]
[1721429194845,2.4549,3520.3,3520.0,2.55681]
[1721429197768,2.4549,3520.3,3520.0,5.11356]
[1721429198157,2.4549,3520.3,3520.0,2.55675]
[1721429199968,6.0049,3520.6,3520.1,0.04192029]
[1721429200440,6.0049,3520.6,3520.3,2.55655]
[1721429200775,6.0049,3520.6,3520.4,0.04176508]
[1721429203562,6.0049,3520.6,3520.2,2.55667]
[1721429203772,6.0049,3520.6,3520.3,0.04181681]
[1721429204141,6.0049,3520.6,3520.2,2.55667]
[1721429204142,7.0509,3520.6,3520.2,2.55667]
[1721429205884,7.0509,3520.6,3520.0,2.5568]
[1721429205885,7.0509,3520.6,3520.0,2.55675]
[1721429207272,7.0509,3520.6,3520.0,5.11349]
[1721429207988,2.4255,3520.3,3519.8,2.5569]
[1721429209867,2.4255,3520.3,3519.9,2.55688]
[1721429213622,2.4255,3520.3,3519.7,2.55697]
[1721429214797,2.4255,3520.3,3519.8,0.04184831]
[1721429215125,2.4255,3520.3,3519.9,0.04179656]
[1721429215428,2.4255,3520.3,3519.8,2.55695]
[1721429215594,2.4255,3520.3,3520.0,0.04174481]
[1721429215921,2.4255,3520.3,3520.1,0.04169306]
[1721429216104,2.4255,3520.3,3519.9,2.55688]
[1721429216304,2.4255,3520.3,3520.0,0.04174481]
[1721429217009,2.4255,3520.3,3519.7,2.55699]
[1721429217200,2.4255,3520.3,3519.8,0.04184831]
[1721429217201,5.02090828,3520.3,3519.8,0.04184831]
[1721429217401,0.55,3520.2,3519.7,2.55699]
[1721429217597,0.55,3520.2,3519.8,0.04185727]
[1721429217832,0.55,3520.2,3519.7,2.55699]
[1721429218121,0.55,3520.2,3519.9,0.04180552]
[1721429218327,0.55,3520.2,3519.8,0.04185727]
[1721429218493,0.55,3520.2,3520.0,0.04175377]
[1721429218828,0.55,3520.2,3520.1,0.04170203]
[1721429219207,0.55,3520.2,3519.7,2.55699]
[1721429219413,0.55,3520.2,3519.8,0.04185727]
[1721429219927,0.55,3520.2,3519.7,2.55699]
[1721429220131,0.55,3520.2,3519.9,0.04180552]
[1721429220338,0.55,3520.2,3519.7,2.55699]
[1721429220339,0.55,3520.2,3519.8,2.59878727]
[1721429220521,0.55,3520.2,3520.0,0.04175377]
[1721429220703,0.55,3520.2,3520.1,0.04170203]